bitfinex/quotes_BTCUSD_20250814
["timestamp","ask_amount","ask_price","bid_price","bid_amount"]
[1755195055056,0.44065068,117780.0,117770.0,0.0004]
[1755195055515,0.40005737,117780.0,117770.0,0.00539]
[1755195056392,0.40208737,117780.0,117770.0,0.00539]
[1755195056615,1.0443037,117780.0,117770.0,0.0004]
[1755195056819,0.4835718,117780.0,117770.0,0.0024]
[1755195057063,0.4835718,117780.0,117770.0,0.00539]
[1755195057248,0.40108737,117780.0,117770.0,0.00539]
[1755195057676,0.39905737,117780.0,117770.0,0.00539]
[1755195059061,0.40108737,117780.0,117770.0,0.00539]
[1755195059213,0.40108446,117780.0,117770.0,0.00539]
[1755195060520,0.39905446,117780.0,117770.0,0.00539]
[1755195060741,0.31633121,117780.0,117770.0,0.00539]
[1755195061880,0.31797121,117780.0,117770.0,0.73494443]
[1755195062082,0.15019866,117780.0,117770.0,0.73494443]
[1755195062703,0.15019866,117780.0,117770.0,0.17521253]
[1755195063003,0.15019866,117780.0,117770.0,0.73494443]
[1755195063999,0.15019866,117780.0,117770.0,0.73594443]
[1755195064916,0.01571866,117780.0,117770.0,0.81866768]
[1755195065117,0.01571866,117780.0,117770.0,1.15866768]
[1755195065322,0.15035866,117780.0,117770.0,1.15866768]
[1755195066347,0.01571866,117780.0,117770.0,1.15866768]
[1755195066563,0.15039866,117780.0,117770.0,1.18335768]
[1755195066767,0.01571866,117780.0,117770.0,1.18335768]
[1755195067401,0.01571866,117780.0,117770.0,1.18235768]
[1755195067621,0.01671866,117780.0,117770.0,1.18635768]
[1755195067847,0.01671866,117780.0,117770.0,0.62662578]
[1755195068066,0.01671866,117780.0,117770.0,1.18635768]
[1755195068294,0.01671866,117780.0,117770.0,1.16166768]
[1755195073426,0.001,117780.0,117770.0,1.16166768]
[1755195073808,0.01678645,117780.0,117770.0,1.16166768]
[1755195074251,0.001,117780.0,117770.0,1.16166768]
[1755195086808,0.001,117780.0,117770.0,0.60193578]
[1755195087195,0.001,117780.0,117770.0,1.16166768]
[1755195089706,0.001,117780.0,117770.0,1.29530768]
[1755195093212,0.00307,117780.0,117770.0,0.59894578]
[1755195093414,0.00307,117780.0,117770.0,1.15867768]
[1755195094029,0.00307,117780.0,117770.0,1.15667768]
[1755195094239,0.0061,117780.0,117770.0,1.15667768]
[1755195094354,0.00307,117780.0,117770.0,1.15667768]
[1755195094568,0.00307,117780.0,117770.0,1.15867768]
[1755195096213,0.00307,117780.0,117770.0,1.16182768]
[1755195096430,0.001,117780.0,117770.0,1.16182768]
[1755195098557,0.001,117780.0,117770.0,1.29510768]
[1755195099803,0.001,117780.0,117770.0,0.73537578]
[1755195099952,0.00306,117780.0,117770.0,1.29514768]
[1755195100169,0.00306,117780.0,117770.0,1.15867768]
[1755195100921,0.00306,117780.0,117770.0,1.16166768]
[1755195101541,0.001,117780.0,117770.0,1.16166768]
[1755195102708,0.001,117780.0,117770.0,0.60193578]
[1755195102921,0.001,117780.0,117770.0,1.16166768]
[1755195104370,0.003,117780.0,117770.0,1.17766768]
[1755195105919,0.003,117780.0,117770.0,1.20314668]
[1755195107590,0.003,117780.0,117770.0,1.33642668]
[1755195111729,0.003,117780.0,117770.0,0.77669478]
[1755195111942,0.003,117780.0,117770.0,1.33642668]
[1755195112731,0.003,117780.0,117770.0,0.63842478]
[1755195112732,0.00506,117780.0,117770.0,0.63842478]
[1755195112934,0.00822,117780.0,117770.0,1.19815668]
[1755195113145,0.31118811,117780.0,117770.0,1.19815668]
[1755195113345,0.31118811,117780.0,117770.0,0.3604]
[1755195113548,0.31118811,117780.0,117770.0,0.0204]
[1755195114595,0.30818811,117780.0,117770.0,0.17022253]
[1755195114795,0.30818811,117780.0,117770.0,0.0004]
[1755195115105,0.31018811,117780.0,117770.0,0.0034]
[1755195115504,0.31218811,117780.0,117770.0,0.0134]
[1755195115909,0.31218811,117780.0,117770.0,0.0144]
[1755195117285,0.31218811,117780.0,117770.0,0.74395443]
[1755195117494,0.31218811,117780.0,117770.0,0.5741319]
[1755195118058,0.31218811,117780.0,117770.0,0.0144]
[1755195119787,0.31218811,117780.0,117770.0,0.18422253]
[1755195120453,0.13922,117780.0,117770.0,0.74395443]
[1755195120665,0.13716,117780.0,117770.0,0.74901443]
[1755195121955,0.004,117780.0,117770.0,0.83173768]
[1755195122231,0.13704,117780.0,117770.0,0.83173768]
[1755195123942,0.30684811,117780.0,117770.0,0.27200578]
[1755195124157,0.30890811,117780.0,117770.0,0.18422253]
[1755195124342,0.31206811,117780.0,117770.0,0.74395443]
[1755195124552,0.1391,117780.0,117770.0,0.74395443]
[1755195124774,0.1391,117780.0,117770.0,0.74602443]
[1755195124990,0.1391,117780.0,117770.0,0.74901443]
[1755195125253,0.13704,117780.0,117770.0,0.74901443]
[1755195127607,0.13704,117780.0,117770.0,0.18928253]
[1755195127868,0.13704,117780.0,117770.0,0.74901443]
[1755195130464,0.004,117780.0,117770.0,0.83173768]
[1755195130678,0.13732,117780.0,117770.0,0.83173768]
[1755195130919,0.004,117780.0,117770.0,1.17173768]
[1755195131138,0.004,117780.0,117770.0,1.30501768]
[1755195131534,0.004,117780.0,117770.0,1.17173768]
[1755195131935,0.002,117780.0,117770.0,1.17073768]
[1755195132141,0.13328,117790.0,117780.0,0.16980811]
[1755195132318,0.13328,117790.0,117780.0,0.81439326]
[1755195132533,0.13328,117790.0,117780.0,0.81732326]
[1755195133526,0.13428,117790.0,117780.0,0.82432326]
[1755195133817,0.13428,117790.0,117780.0,0.82632326]
[1755195134468,0.1364,117790.0,117780.0,0.26659136]
[1755195134660,0.1364,117790.0,117780.0,0.73854001]
[1755195134805,0.13934,117790.0,117780.0,0.73854001]
[1755195135164,0.3091337,117790.0,117780.0,0.73854001]
[1755195136046,0.3091337,117790.0,117780.0,0.17880811]
[1755195136479,0.3091337,117790.0,117780.0,0.5687319]
[1755195136709,0.3091337,117790.0,117780.0,0.009]
[1755195136917,0.3091337,117790.0,117780.0,0.17880811]
[1755195139038,0.3091337,117790.0,117780.0,0.009]
[1755195140811,0.39085695,117790.0,117780.0,0.002]
[1755195140990,0.41341695,117790.0,117780.0,0.002]
[1755195141249,0.41441695,117790.0,117780.0,0.006]
[1755195141679,0.41441695,117790.0,117780.0,0.007]
[1755195150889,0.99159787,117790.0,117780.0,0.007]
[1755195151098,1.4140823,117790.0,117780.0,0.007]
[1755195152142,1.4140823,117790.0,117780.0,0.006]
[1755195152355,1.45232961,117790.0,117780.0,0.006]
[1755195152896,1.45332961,117790.0,117780.0,0.006]
[1755195153052,0.16980811,117780.0,117770.0,0.0004]
[1755195153265,0.81732326,117780.0,117770.0,0.0004]
[1755195153472,0.82491699,117780.0,117770.0,0.0004]
[1755195154487,0.90740142,117780.0,117770.0,0.0004]
[1755195154918,0.34766952,117780.0,117770.0,0.0004]
[1755195155124,0.90740142,117780.0,117770.0,0.0004]
[1755195155581,0.90840142,117780.0,117770.0,0.0004]
[1755195155822,0.92685044,117780.0,117770.0,0.0054]
[1755195157535,1.26685044,117780.0,117770.0,0.0054]
[1755195159188,0.70711854,117780.0,117770.0,0.0054]
[1755195159396,1.26685044,117780.0,117770.0,0.0054]
[1755195162315,0.57727155,117770.0,117750.0,0.5004]
[1755195162518,1.2915821,117760.0,117750.0,0.50089307]
[1755195162733,1.2915821,117760.0,117750.0,0.11095929]
[1755195162934,1.3165821,117760.0,117750.0,0.11095929]
[1755195163710,1.3165821,117760.0,117750.0,0.11595929]
[1755195163965,0.7578502,117760.0,117750.0,0.11595929]
[1755195164125,1.42556453,117760.0,117750.0,0.11595929]
[1755195164327,0.86583263,117760.0,117750.0,0.11595929]
[1755195164532,0.7553082,117760.0,117750.0,0.11595929]
[1755195164743,0.63847722,117760.0,117750.0,0.12119929]
[1755195164951,0.7279202,117760.0,117750.0,0.12119929]
[1755195165158,0.3879202,117760.0,117750.0,0.12119929]
[1755195165355,0.3879202,117760.0,117750.0,0.68093119]
[1755195165582,0.30523695,117760.0,117750.0,0.68093119]
[1755195165948,0.30523695,117760.0,117750.0,0.85078257]
[1755195166129,0.002,117760.0,117750.0,0.85078257]
[1755195166370,0.13644,117760.0,117750.0,0.85078257]
[1755195166582,0.30627695,117760.0,117750.0,0.85078257]
[1755195166752,0.13644,117760.0,117750.0,0.85078257]
[1755195166963,0.13544,117760.0,117750.0,0.85078257]
[1755195167379,0.13544,117760.0,117750.0,1.85605772]
[1755195167380,0.001,117760.0,117750.0,1.85605772]
[1755195167816,0.001,117760.0,117750.0,1.86416264]
[1755195168139,0.13444,117770.0,117760.0,0.50983695]
[1755195168346,0.20372,117790.0,117760.0,1.717264]
[1755195168628,0.20372,117790.0,117780.0,0.72954001]
[1755195168766,0.3382,117790.0,117780.0,0.73164001]
[1755195168966,0.3382,117790.0,117780.0,0.73478001]
[1755195168967,0.5079937,117790.0,117780.0,0.73478001]
[1755195169759,0.00312,117860.0,117840.0,0.16972052]
[1755195169972,0.13448,117850.0,117840.0,0.73259242]
[1755195170148,0.13448,117850.0,117840.0,0.72945242]
[1755195170371,0.13448,117850.0,117840.0,0.73155242]
[1755195170603,0.13448,117850.0,117840.0,0.73469242]
[1755195170828,0.13448,117850.0,117840.0,0.17496052]
[1755195171064,0.13462774,117850.0,117840.0,0.17496052]
[1755195171522,0.30433499,117850.0,117840.0,0.17496052]
[1755195171889,0.3619801,117850.0,117840.0,0.0021]
[1755195172108,0.3629801,117850.0,117830.0,0.17284928]
[1755195172331,0.3639801,117850.0,117830.0,0.17284928]
[1755195172512,0.30830499,117850.0,117840.0,0.17182165]
[1755195172727,0.72757221,117850.0,117810.0,0.17290487]
[1755195172948,0.16973836,117830.0,117820.0,0.00314]
[1755195173160,0.16973836,117830.0,117820.0,0.00524]
[1755195173620,0.17170836,117830.0,117820.0,0.00524]
[1755195173848,0.20585136,117830.0,117820.0,0.00524]
[1755195174928,0.16975046,117820.0,117810.0,0.00514]
[1755195175141,0.31264046,117820.0,117810.0,0.00724]
[1755195175359,0.31164046,117820.0,117810.0,0.00524]
[1755195175564,0.31164046,117820.0,117810.0,0.0021]
[1755195175565,0.36319264,117820.0,117810.0,0.0021]
[1755195175767,0.16976487,117810.0,117800.0,0.00314]
[1755195175975,0.16976487,117810.0,117800.0,0.00524]
[1755195176187,0.16776487,117810.0,117800.0,0.00524]
[1755195176562,0.16973487,117810.0,117800.0,0.0021]
[1755195176738,0.16973487,117810.0,117790.0,0.00314]
[1755195176739,0.16977928,117800.0,117790.0,0.00314]
[1755195176939,0.16977928,117800.0,117790.0,0.00524]
[1755195178105,0.25447253,117800.0,117790.0,0.00524]
[1755195178327,0.16977928,117800.0,117790.0,0.66098516]
[1755195179143,0.16977928,117800.0,117790.0,0.1750337]
[1755195179493,0.16977928,117800.0,117790.0,0.00524]
[1755195181479,0.3458737,117800.0,117790.0,0.00524]
[1755195181691,0.31211928,117800.0,117790.0,0.0021]
[1755195182879,0.1697937,117790.0,117780.0,0.00314]
[1755195183133,0.1697937,117790.0,117780.0,0.00524]
[1755195185021,0.1697937,117790.0,117770.0,0.01124483]
[1755195185022,0.16980811,117780.0,117770.0,0.01124483]
[1755195185187,0.31132811,117780.0,117770.0,0.00524]
[1755195186180,0.31132811,117780.0,117770.0,0.01316316]
[1755195186433,0.31132811,117780.0,117770.0,0.01416316]
[1755195186655,0.31132811,117780.0,117770.0,0.00624]
[1755195187010,0.31338811,117780.0,117770.0,0.0031]
[1755195187987,0.31338811,117780.0,117770.0,0.001]
[1755195188118,0.31338811,117780.0,117770.0,0.002]
[1755195188355,0.33740163,117780.0,117770.0,0.002]
[1755195188576,0.34035163,117780.0,117770.0,0.002]
[1755195188828,0.39906136,117780.0,117770.0,0.002]
[1755195189071,0.16983695,117760.0,117750.0,0.29182907]
[1755195189291,0.31305695,117760.0,117750.0,0.1155555]
[1755195189516,0.31305695,117760.0,117750.0,0.1234004]
[1755195189713,0.31305695,117760.0,117750.0,0.1155555]
[1755195190332,0.31305695,117760.0,117750.0,0.1125355]
[1755195191429,0.31305695,117760.0,117750.0,0.1135355]
[1755195191984,0.31305695,117760.0,117750.0,0.1125355]
[1755195192186,0.31405695,117760.0,117750.0,0.1125355]
[1755195192391,0.31405695,117760.0,117750.0,0.1105155]
[1755195193063,0.31405695,117760.0,117750.0,0.1125355]
[1755195193552,0.31405695,117760.0,117750.0,0.1155555]
[1755195195013,0.31405695,117760.0,117750.0,0.28540688]
[1755195195956,0.31405695,117760.0,117750.0,0.1155555]
[1755195196175,0.31405695,117760.0,117750.0,0.28540688]
[1755195196421,0.31405695,117760.0,117750.0,0.1155555]
[1755195196597,0.31405695,117760.0,117750.0,0.28540688]
[1755195196763,0.31405695,117760.0,117750.0,0.1155555]
[1755195197397,0.31405695,117760.0,117750.0,0.28540688]
[1755195197568,0.31405695,117760.0,117750.0,0.1155555]
[1755195197801,0.31405695,117760.0,117750.0,0.1105155]
[1755195199712,0.31700695,117760.0,117750.0,0.1105155]
[1755195200281,0.31405695,117760.0,117750.0,0.1105155]
[1755195201044,0.31405695,117760.0,117750.0,0.1125355]
[1755195201696,0.31405695,117760.0,117750.0,0.1105155]
[1755195201910,0.36252416,117760.0,117750.0,0.1105155]
[1755195203204,0.3975602,117760.0,117750.0,0.1105155]
[1755195203647,1.05330536,117760.0,117750.0,0.1105155]
[1755195203862,1.07075438,117760.0,117750.0,0.1105155]
[1755195204075,0.41500922,117760.0,117750.0,0.1105155]
[1755195204520,0.41400922,117760.0,117750.0,0.1105155]
[1755195204761,0.47239366,117760.0,117750.0,0.1105155]
[1755195204987,0.47439366,117760.0,117750.0,0.1105155]
[1755195205448,0.47639366,117760.0,117750.0,0.1105155]
[1755195207457,1.47213882,117760.0,117750.0,0.1105155]
[1755195207775,0.83977366,117760.0,117750.0,0.1105155]
[1755195208651,1.49551882,117760.0,117750.0,0.1105155]
[1755195209060,1.52051882,117760.0,117750.0,1e-08]
[1755195209600,0.86477366,117760.0,117750.0,1e-08]
[1755195209804,0.78138922,117760.0,117750.0,1e-08]
[1755195210683,1.43713438,117760.0,117750.0,1e-08]
[1755195211026,1.43513438,117760.0,117750.0,1e-08]
[1755195211238,1.43713438,117760.0,117750.0,0.00100001]
[1755195211810,1.45090228,117760.0,117750.0,0.00100001]
[1755195212014,1.53338671,117760.0,117750.0,0.00100001]
[1755195212189,1.76214671,117760.0,117750.0,1e-08]
[1755195212433,1.76514671,117760.0,117750.0,1e-08]
[1755195212636,1.76856671,117760.0,117750.0,1e-08]
[1755195212859,1.79356717,117760.0,117750.0,1e-08]
[1755195213074,1.23304556,117750.0,117740.0,1e-08]
[1755195213271,1.4160816,117750.0,117740.0,1e-08]
[1755195213478,1.4424116,117750.0,117740.0,1e-08]
[1755195213699,0.78666644,117750.0,117740.0,1e-08]
[1755195213843,1.4424116,117750.0,117740.0,1e-08]
[1755195214281,1.48008822,117750.0,117740.0,1e-08]
[1755195214484,0.82434306,117750.0,117740.0,1e-08]
[1755195214632,1.48008822,117750.0,117740.0,1e-08]
[1755195215280,1.48708822,117750.0,117740.0,1e-08]
[1755195215619,0.82834306,117750.0,117740.0,1e-08]
[1755195215838,0.83234306,117750.0,117740.0,1e-08]
[1755195217395,0.53488023,117730.0,117720.0,1e-08]
[1755195217572,0.90797529,117730.0,117720.0,1e-08]
[1755195217773,0.88297529,117730.0,117720.0,1e-08]
[1755195217988,1.56372045,117730.0,117720.0,1e-08]
[1755195218606,0.16989466,117720.0,117710.0,1e-08]
[1755195218812,0.92912143,117720.0,117710.0,1e-08]
[1755195219019,0.3594007,117720.0,117710.0,1e-08]
[1755195219267,1.4105215,117720.0,117690.0,0.0004]
[1755195219474,1.26584096,117700.0,117690.0,0.0004]
[1755195219686,0.6120758,117700.0,117690.0,0.0004]
[1755195219893,0.6120758,117700.0,117690.0,0.00256]
[1755195220096,0.61809673,117700.0,117690.0,0.0057]
[1755195220303,0.76361673,117700.0,117690.0,0.0057]
[1755195220732,0.77768989,117700.0,117690.0,0.00256]
[1755195220941,0.77768989,117700.0,117690.0,0.0004]
[1755195221138,0.77768989,117700.0,117690.0,0.00256]
[1755195221347,0.79542772,117700.0,117690.0,0.0014]
[1755195221560,1.45416288,117700.0,117690.0,0.0014]
[1755195221979,1.45516288,117700.0,117690.0,0.0014]
[1755195222194,0.79941772,117700.0,117690.0,0.0014]
[1755195222413,1.45516288,117700.0,117690.0,0.0014]
[1755195222625,1.45416288,117700.0,117690.0,0.0014]
[1755195223030,1.48216288,117700.0,117690.0,0.0014]
[1755195223237,1.48016288,117700.0,117690.0,0.0004]
[1755195223458,1.48801064,117700.0,117690.0,0.0004]
[1755195223664,1.49355064,117700.0,117690.0,0.0004]
[1755195224095,0.83481548,117700.0,117690.0,0.0004]
[1755195224524,0.83780548,117700.0,117690.0,0.0004]
[1755195224759,0.68929548,117700.0,117690.0,0.0004]
[1755195224975,0.81011548,117700.0,117690.0,0.0057]
[1755195225387,0.81011548,117700.0,117690.0,0.0004]
[1755195225388,0.81209548,117700.0,117690.0,0.0004]
[1755195226036,1.47085064,117700.0,117690.0,0.0004]
[1755195226484,0.81209548,117700.0,117690.0,0.0004]
[1755195226977,0.79462679,117700.0,117690.0,0.0057]
[1755195227204,0.77363777,117700.0,117690.0,0.0057]
[1755195227416,0.79108679,117700.0,117690.0,0.0057]
[1755195227631,0.77363777,117700.0,117690.0,0.0057]
[1755195227858,0.28667777,117700.0,117690.0,0.0057]
[1755195228082,0.43387777,117700.0,117690.0,0.0057]
[1755195228324,0.11675424,117700.0,117690.0,0.83138313]
[1755195228624,0.16801783,117700.0,117690.0,0.83138313]
[1755195229241,0.16301783,117700.0,117690.0,0.83138313]
[1755195229715,0.16401783,117700.0,117690.0,0.83138313]
[1755195230134,0.16301783,117700.0,117690.0,0.83138313]
[1755195230346,0.16401783,117700.0,117690.0,0.83138313]
[1755195230551,0.19919421,117700.0,117690.0,0.83138313]
[1755195231503,0.36811774,117700.0,117690.0,0.83138313]
[1755195231725,0.36811774,117700.0,117690.0,0.17563797]
[1755195231969,0.36811774,117700.0,117690.0,0.0067]
[1755195233314,0.36806222,117700.0,117690.0,0.0067]
[1755195234062,0.45078547,117700.0,117690.0,0.0067]
[1755195235547,0.33388584,117700.0,117690.0,0.17663797]
[1755195236164,0.33388584,117700.0,117690.0,0.0067]
[1755195237581,0.41660909,117700.0,117690.0,0.0067]
[1755195238117,0.42445974,117700.0,117690.0,0.0067]
[1755195238495,0.42643974,117700.0,117690.0,0.0067]
[1755195238691,0.42643974,117700.0,117690.0,0.0014]
[1755195238692,0.51028983,117700.0,117690.0,0.0014]
[1755195238943,1.16904499,117700.0,117690.0,0.0014]
[1755195239195,0.51229983,117700.0,117690.0,0.0004]
[1755195239399,0.51329983,117700.0,117690.0,0.0004]
[1755195239804,0.51229983,117700.0,117690.0,0.0004]
[1755195240007,0.51332591,117700.0,117690.0,0.0004]
[1755195240336,0.51131591,117700.0,117690.0,0.0004]
[1755195241358,0.51031591,117700.0,117690.0,0.0004]
[1755195241850,0.51231591,117700.0,117690.0,0.0004]
[1755195244201,0.51234392,117700.0,117690.0,0.0004]
[1755195244419,0.51036392,117700.0,117690.0,0.0057]
[1755195245066,0.51234392,117700.0,117690.0,0.0057]
[1755195245272,0.51234392,117700.0,117690.0,0.00256]
[1755195247405,0.51036392,117700.0,117690.0,0.00575]
[1755195247831,0.51627477,117700.0,117690.0,0.00575]
[1755195248052,0.51036392,117700.0,117690.0,0.00575]
[1755195248266,0.51627473,117700.0,117690.0,0.00575]
[1755195248484,0.51835473,117700.0,117690.0,0.00575]
[1755195248701,0.51835473,117700.0,117690.0,0.0004]
[1755195249439,0.51835473,117700.0,117690.0,0.00248]
[1755195249670,0.43242464,117700.0,117690.0,0.0004]
[1755195249894,0.42651383,117700.0,117690.0,0.0004]
[1755195250790,0.43243184,117700.0,117690.0,0.0004]
[1755195250996,0.42651383,117700.0,117690.0,0.0004]
[1755195251206,0.43243185,117700.0,117690.0,0.0004]
[1755195251413,0.49266594,117700.0,117690.0,0.0004]
[1755195251622,0.85011496,117700.0,117690.0,0.0004]
[1755195252825,1.55682012,117700.0,117690.0,0.0004]
[1755195253035,0.85351596,117700.0,117690.0,0.0004]
[1755195254735,0.85431596,117700.0,117690.0,0.0004]
[1755195254939,0.79408187,117700.0,117690.0,0.00567]
[1755195255139,0.79068087,117700.0,117690.0,0.00567]
[1755195255286,0.78996918,117700.0,117690.0,0.00567]
[1755195256323,0.79204918,117700.0,117690.0,0.00567]
[1755195256475,0.87453361,117700.0,117690.0,0.00248]
[1755195257113,0.87453361,117700.0,117690.0,0.0004]
[1755195257345,0.87777361,117700.0,117690.0,0.0004]
[1755195260941,1.53351877,117700.0,117690.0,1e-08]
[1755195261977,1.55386877,117700.0,117690.0,1e-08]
[1755195262196,1.55686877,117700.0,117690.0,1e-08]
[1755195262407,1.55986877,117700.0,117690.0,1e-08]
[1755195264096,0.90752561,117700.0,117690.0,1e-08]
[1755195264292,0.88477561,117700.0,117690.0,1e-08]
[1755195264734,0.88477252,117700.0,117690.0,1e-08]
[1755195265362,0.88153252,117700.0,117690.0,1e-08]
[1755195265570,0.88153252,117700.0,117690.0,0.00527001]
[1755195266195,0.52220381,117700.0,117690.0,0.00527001]
[1755195266419,0.85628615,117700.0,117690.0,0.00527001]
[1755195266857,0.85288415,117700.0,117690.0,0.00527001]
[1755195267066,0.86244337,117700.0,117690.0,0.00527001]
[1755195269241,0.86452337,117700.0,117690.0,0.00208001]
[1755195269584,0.86776337,117700.0,117690.0,1e-08]
[1755195272455,0.85198023,117700.0,117690.0,1e-08]
[1755195272681,0.84874023,117700.0,117690.0,1e-08]
[1755195272872,0.84874023,117700.0,117690.0,0.00208001]
[1755195273095,0.84666023,117700.0,117690.0,0.00527001]
[1755195273927,0.84874023,117700.0,117690.0,0.00527001]
[1755195274275,0.84874023,117700.0,117690.0,0.00208001]
[1755195275228,0.84874023,117700.0,117690.0,1e-08]
[1755195275781,1.50772539,117700.0,117690.0,1e-08]
[1755195277038,1.51131539,117700.0,117690.0,1e-08]
[1755195277679,0.85557023,117700.0,117690.0,1e-08]
[1755195281931,1.51131539,117700.0,117690.0,1e-08]
[1755195283086,0.85557023,117700.0,117690.0,1e-08]
[1755195283409,1.51131539,117700.0,117690.0,1e-08]
[1755195284150,0.85233023,117700.0,117690.0,1e-08]
[1755195284702,0.84921023,117700.0,117690.0,0.00526001]
[1755195285203,0.85127023,117700.0,117690.0,0.00203001]
[1755195285365,0.85127023,117700.0,117690.0,1e-08]
[1755195285563,0.85174023,117700.0,117690.0,1e-08]
[1755195285973,0.85127023,117700.0,117690.0,0.00526001]
[1755195286352,0.85127023,117700.0,117690.0,0.00203001]
[1755195286594,0.85127023,117700.0,117690.0,1e-08]
[1755195287788,0.85127023,117700.0,117690.0,0.00526001]
[1755195287988,0.84925023,117700.0,117690.0,0.00526001]
[1755195289032,0.70217023,117700.0,117690.0,0.00526001]
[1755195289381,0.84550023,117700.0,117690.0,0.00526001]
[1755195291407,0.85076023,117700.0,117690.0,0.00526001]
[1755195291722,0.84550023,117700.0,117690.0,0.00526001]
[1755195292382,0.84606023,117700.0,117690.0,0.00526001]
[1755195292662,0.85132023,117700.0,117690.0,0.00526001]
[1755195294098,0.85132023,117700.0,117690.0,0.00203001]
[1755195294315,0.85132023,117700.0,117690.0,1e-08]
[1755195294316,1.50955539,117700.0,117690.0,1e-08]
[1755195295150,0.85381023,117700.0,117690.0,1e-08]
[1755195295698,0.85132023,117700.0,117690.0,1e-08]
[1755195296952,0.85449023,117700.0,117690.0,1e-08]
[1755195299075,0.85132023,117700.0,117690.0,1e-08]
[1755195300399,0.85004023,117700.0,117690.0,0.00526001]
[1755195300556,0.70384023,117700.0,117690.0,0.00526001]
[1755195300771,0.25864678,117700.0,117690.0,0.00526001]
[1755195300976,0.40492678,117700.0,117690.0,0.00526001]
[1755195301214,0.25864678,117700.0,117690.0,0.00526001]
[1755195301425,0.17592353,117700.0,117690.0,0.83094314]
[1755195301648,0.15244,117700.0,117690.0,0.83094314]
[1755195302063,0.32236353,117700.0,117690.0,0.83094314]
[1755195302269,0.31936353,117700.0,117690.0,0.17519798]
[1755195302683,0.15044,117700.0,117690.0,0.83094314]
[1755195302883,0.14744,117700.0,117690.0,0.83094314]
[1755195303322,0.31836353,117700.0,117690.0,0.17519798]
[1755195303529,0.35801044,117700.0,117690.0,0.00526001]
[1755195303768,0.31836353,117700.0,117690.0,0.00526001]
[1755195303980,0.31836353,117700.0,117690.0,0.00826001]
[1755195304094,0.31936353,117700.0,117690.0,0.00826001]
[1755195304528,0.40208678,117700.0,117690.0,0.00826001]
[1755195304772,0.40414678,117700.0,117690.0,0.00503001]
[1755195304988,0.46831865,117700.0,117690.0,0.00503001]
[1755195305619,0.46731865,117700.0,117690.0,0.00503001]
[1755195306053,0.46531865,117700.0,117690.0,0.00203001]
[1755195306261,0.46531865,117700.0,117690.0,0.00303001]
[1755195306688,0.46531865,117700.0,117690.0,0.00100001]
[1755195306889,0.48276767,117700.0,117690.0,0.00100001]
[1755195307092,0.48376767,117700.0,117690.0,0.00100001]
[1755195308083,0.48376767,117700.0,117690.0,0.00598001]
[1755195308284,0.48170767,117700.0,117690.0,0.00598001]
[1755195309101,0.46425865,117700.0,117690.0,0.00598001]
[1755195310799,0.31781865,117700.0,117690.0,0.17591798]
[1755195311004,0.46389865,117700.0,117690.0,0.17591798]
[1755195311430,0.39972678,117700.0,117690.0,0.00598001]
[1755195311652,0.39972678,117700.0,117690.0,0.17591798]
[1755195312374,0.001,117700.0,117690.0,0.17591798]
[1755195312640,0.14696,117700.0,117690.0,0.83166314]
[1755195313485,0.14596,117700.0,117690.0,0.83166314]
[1755195313703,0.14596,117700.0,117690.0,0.83066314]
[1755195313929,0.14696,117700.0,117690.0,0.83066314]
[1755195314567,0.14796,117700.0,117690.0,0.83366314]
[1755195315159,0.34967073,117700.0,117690.0,0.00798001]
[1755195315367,0.35023073,117700.0,117690.0,0.00501001]
[1755195315576,0.35023073,117700.0,117690.0,0.00300001]
[1755195316154,0.43295398,117700.0,117690.0,0.00300001]
[1755195316338,0.43591398,117700.0,117690.0,0.00300001]
[1755195316528,0.42915937,117700.0,117690.0,0.00300001]
[1755195316728,0.39737217,117700.0,117690.0,0.00300001]
[1755195316982,0.41482119,117700.0,117690.0,0.00300001]
[1755195317356,0.41282119,117700.0,117690.0,1e-08]
[1755195317816,0.41482119,117700.0,117690.0,0.00100001]
[1755195318683,0.75482119,117700.0,117690.0,0.00100001]
[1755195318891,0.83730562,117700.0,117690.0,0.00100001]
[1755195319525,0.83730562,117700.0,117680.0,1e-08]
[1755195319526,0.82568313,117690.0,117680.0,1e-08]
[1755195319730,0.91333638,117690.0,117680.0,1e-08]
[1755195319946,0.93685638,117690.0,117680.0,1e-08]
[1755195320111,0.9543054,117690.0,117680.0,1e-08]
[1755195320340,0.38104467,117690.0,117680.0,1e-08]
[1755195321136,0.72804467,117690.0,117680.0,0.00100001]
[1755195322270,0.70452467,117690.0,117680.0,0.00100001]
[1755195322911,0.70792667,117690.0,117680.0,0.00100001]
[1755195323422,1.36367183,117690.0,117680.0,0.00100001]
[1755195323862,1.40120735,117690.0,117680.0,0.00100001]
[1755195324573,0.74546219,117690.0,117680.0,0.00100001]
[1755195324789,0.74250219,117690.0,117680.0,0.00100001]
[1755195325481,0.74546219,117690.0,117680.0,0.00100001]
[1755195325916,0.70496667,117690.0,117680.0,0.00301001]
[1755195326127,0.70792667,117690.0,117680.0,0.00100001]
[1755195327701,1.36367183,117690.0,117680.0,0.00100001]
[1755195328143,1.40138293,117690.0,117680.0,0.00100001]
[1755195328819,1.54910293,117690.0,117680.0,0.00100001]
[1755195331630,1.40138293,117690.0,117680.0,0.00100001]
[1755195331855,1.54902293,117690.0,117680.0,0.00100001]
[1755195332052,0.74563777,117690.0,117680.0,0.00100001]
[1755195332258,0.89315777,117690.0,117680.0,0.00100001]
[1755195332991,0.89023777,117690.0,117680.0,0.00100001]
[1755195334142,0.89319777,117690.0,117680.0,0.00100001]
[1755195334344,1.54894293,117690.0,117680.0,0.00100001]
[1755195334772,1.54890293,117690.0,117680.0,0.00100001]
[1755195335347,0.74563777,117690.0,117680.0,0.00100001]
[1755195335710,1.54894293,117690.0,117680.0,0.00100001]
[1755195336585,1.51123183,117690.0,117680.0,0.00100001]
[1755195337359,0.85548667,117690.0,117680.0,0.00100001]
[1755195337562,1.51123183,117690.0,117680.0,0.00100001]
[1755195338594,0.85548667,117690.0,117680.0,0.00100001]
[1755195338804,1.51123183,117690.0,117680.0,0.00100001]
[1755195339392,0.70496667,117690.0,117680.0,0.00621001]
[1755195339597,0.85035667,117690.0,117680.0,0.00621001]
[1755195339801,0.76787224,117690.0,117680.0,0.00621001]
[1755195340458,0.76791224,117690.0,117680.0,0.00621001]
[1755195343492,0.25966122,117690.0,117680.0,0.00621001]
[1755195343694,0.40726122,117690.0,117680.0,0.00621001]
[1755195343874,0.40738122,117690.0,117680.0,0.17616242]
[1755195344240,0.007,117690.0,117680.0,0.17616242]
[1755195344444,0.31777797,117690.0,117680.0,0.17516242]
[1755195344644,0.38693612,117690.0,117680.0,0.00521001]